bitfinex-derivatives/quotes_ETHF0:USTF0_20240915
["timestamp","ask_amount","ask_price","bid_price","bid_amount"]
[1726394055733,7.11137231,2414.4,2414.3,2.16616885]
[1726394056330,7.11137231,2414.4,2414.3,1.07951929]
[1726394056532,7.11137231,2414.4,2414.3,2.16616885]
[1726394058242,2.09227231,2414.4,2414.3,8.89989228]
[1726394058425,0.096,2414.8,2414.5,0.41404]
[1726394058629,1.19,2414.7,2414.6,5.82982104]
[1726394059237,1.19,2414.7,2414.6,2.16661973]
[1726394059443,4.3978,2414.7,2414.6,2.16661973]
[1726394059629,4.3978,2414.7,2414.6,1.07951929]
[1726394059829,5.4444,2414.7,2414.6,1.07951929]
[1726394060025,5.85842,2414.7,2414.6,1.07951929]
[1726394060236,0.41404,2414.6,2414.3,1.08710044]
[1726394060533,1.19,2414.4,2414.2,1.08710044]
[1726394060733,1.19,2414.4,2414.3,0.58861008]
[1726394061035,1.19,2414.4,2414.3,0.58860404]
[1726394061233,1.19,2414.4,2414.3,2.16661276]
[1726394061429,1.19,2414.4,2414.3,1.07951232]
[1726394061630,1.19,2414.4,2414.3,2.16661276]
[1726394062433,1.19,2414.4,2414.3,1.07951232]
[1726394062826,8.9317,2414.4,2414.1,1.08710044]
[1726394063037,8.9317,2414.4,2414.0,1.56120044]
[1726394063038,0.797,2414.3,2414.0,1.56120044]
[1726394063240,1.19,2414.2,2414.1,0.49093258]
[1726394064247,1.19,2414.2,2414.0,1.46520044]
[1726394064546,1.19,2414.2,2414.1,0.49092875]
[1726394064746,1.19,2414.2,2414.0,1.46520044]
[1726394065435,5.3324,2414.2,2413.9,1.08710044]
[1726394065633,1.19,2414.0,2413.9,1.47070044]
[1726394065840,1.19,2414.0,2413.9,2.55031811]
[1726394066242,1.19,2414.0,2413.9,1.46321767]
[1726394067144,1.19,2414.0,2413.9,0.87454356]
[1726394067534,1.19,2414.0,2413.9,0.3836]
[1726394067747,1.19,2414.0,2413.9,0.874546]
[1726394067943,1.19,2414.0,2413.9,1.36549198]
[1726394068441,1.19,2414.0,2413.9,0.490946]
[1726394068442,8.5402,2414.0,2413.9,0.490946]
[1726394068647,9.324,2414.0,2413.9,0.490946]
[1726394072547,15.324,2414.0,2413.9,0.490946]
[1726394072852,15.73814,2414.0,2413.9,0.490946]
[1726394074845,9.324,2414.0,2413.9,0.490946]
[1726394075147,15.324,2414.0,2413.9,0.490946]
[1726394075538,9.324,2414.0,2413.9,0.490946]
[1726394076536,9.73814,2414.0,2413.9,0.490946]
[1726394076737,9.324,2414.0,2413.9,0.490946]
[1726394077248,9.73814,2414.0,2413.5,0.3917]
[1726394077552,1.19,2413.6,2413.5,0.3917]
[1726394083356,0.096,2413.9,2413.5,0.3917]
[1726394083357,1.19,2413.7,2413.5,0.3917]
[1726394087454,1.19,2413.6,2413.5,0.3917]
[1726394088953,4.81201,2413.6,2413.5,0.3917]
[1726394089146,4.3978,2413.6,2413.5,0.3917]
[1726394089758,4.801,2413.6,2413.5,0.3917]
[1726394091652,0.38,2413.8,2413.5,0.3917]
[1726394091960,1.19,2413.6,2413.5,0.3917]
[1726394093265,0.38,2413.8,2413.5,0.3917]
[1726394093455,1.19,2413.7,2413.5,0.3917]
[1726394107264,0.3855,2413.6,2413.5,0.3917]
[1726394108273,0.3855,2413.6,2413.5,0.88268687]
[1726394109267,0.3855,2413.6,2413.5,1.47142967]
[1726394110070,0.3855,2413.6,2413.5,0.88268687]
[1726394110272,0.3855,2413.6,2413.5,1.47143302]
[1726394111374,0.3855,2413.6,2413.5,0.3917]
[1726394111573,0.3855,2413.6,2413.5,0.98045033]
[1726394111773,0.3855,2413.6,2413.5,0.3917]
[1726394111976,0.7622,2413.6,2413.5,1.47144267]
[1726394113374,0.7622,2413.6,2413.5,2.55854311]
[1726394113963,0.7622,2413.6,2413.5,1.47144267]
[1726394114169,0.7622,2413.6,2413.5,2.55854311]
[1726394114664,0.7622,2413.6,2413.5,1.969792]
[1726394114870,0.7622,2413.6,2413.5,2.06754727]
[1726394115777,0.7622,2413.6,2413.5,2.55853545]
[1726394118380,0.7622,2413.6,2413.5,2.5585426]
[1726394118681,0.7622,2413.6,2413.5,2.55854774]
[1726394121079,3.88124582,2413.6,2413.5,1.0797473]
[1726394121283,3.46703582,2413.6,2413.5,1.0797473]
[1726394121476,0.7622,2413.6,2413.5,1.0797473]
[1726394121990,0.7622,2413.6,2413.5,1.07976391]
[1726394122475,0.7622,2413.6,2413.5,1.07978767]
[1726394122673,3.88124582,2413.6,2413.5,1.07978767]
[1726394122873,1.17641,2413.6,2413.5,1.57079641]
[1726394123071,1.17641,2413.6,2413.5,1.07978648]
[1726394123276,4.9054,2413.6,2413.2,1.08710044]
[1726394123576,4.9054,2413.6,2413.2,1.08711872]
[1726394123577,4.3978,2413.3,2413.2,1.08711872]
[1726394123776,4.3978,2413.3,2413.2,4.35036499]
[1726394123977,5.5596,2413.3,2413.2,2.95263188]
[1726394124279,5.5596,2413.3,2413.2,2.16697106]
[1726394125482,5.5596,2413.3,2413.2,2.16697458]
[1726394126778,10.11786,2413.3,2413.2,1.07985586]
[1726394126986,10.11786,2413.3,2413.0,1.48181872]
[1726394127170,1.19,2413.1,2413.0,1.48181872]
[1726394127370,1.19,2413.1,2413.0,2.56171231]
[1726394128981,1.19,2413.1,2413.0,1.48181872]
[1726394129174,1.19,2413.1,2413.0,2.65951083]
[1726394129374,1.19,2413.1,2413.0,2.56172212]
[1726394129878,1.19,2413.1,2413.0,3.05277697]
[1726394130475,1.19,2413.1,2413.0,1.96565825]
[1726394131778,1.19,2413.1,2413.0,1.37681009]
[1726394131982,1.19,2413.1,2413.0,1.96565438]
[1726394132483,4.3696,2413.3,2413.0,1.96565438]
[1726394132784,4.3696,2413.3,2413.0,1.97287396]
[1726394132785,1.19,2413.2,2413.0,1.97287396]
[1726394132984,3.2078,2413.3,2413.1,1.37493008]
[1726394133279,1.19,2413.2,2413.1,1.27714651]
[1726394133783,1.19,2413.2,2413.1,1.76818158]
[1726394134183,1.19,2413.2,2413.1,1.27714651]
[1726394137588,1.19,2413.2,2413.1,0.7861]
[1726394157489,1.19,2413.2,2413.1,1.27713716]
[1726394157700,1.19,2413.2,2413.1,0.7861]
[1726394158291,1.19,2413.2,2413.1,1.27713489]
[1726394158795,1.19,2413.2,2413.1,0.7861]
[1726394158998,1.19,2413.2,2413.1,1.27713336]
[1726394159305,1.19,2413.2,2413.1,1.27714108]
[1726394160596,1.19,2413.2,2413.1,0.7861]
[1726394161905,1.19,2413.2,2413.1,0.3958]
[1726394162304,1.19,2413.2,2413.1,0.88684257]
[1726394164210,1.19,2413.2,2413.1,1.47567012]
[1726394164401,1.19,2413.2,2413.1,1.47567073]
[1726394164599,1.19,2413.2,2413.1,0.88684257]
[1726394164804,1.19,2413.2,2413.1,1.47566992]
[1726394165000,1.19,2413.2,2413.1,0.88684257]
[1726394165307,1.19,2413.2,2413.1,1.47567202]
[1726394167108,1.19,2413.2,2413.1,1.48291872]
[1726394167306,1.19,2413.2,2413.1,0.98463229]
[1726394167507,1.19,2413.2,2413.1,2.56279559]
[1726394169394,1.19,2413.2,2413.1,3.3484626]
[1726394169799,1.19,2413.2,2413.1,4.74680347]
[1726394170105,1.19,2413.2,2413.1,4.74679344]
[1726394170407,1.19,2413.2,2413.1,3.3484626]
[1726394170605,1.19,2413.2,2413.1,4.74686573]
[1726394170800,1.19,2413.2,2413.1,4.74685313]
[1726394170999,1.19,2413.2,2413.1,3.3484626]
[1726394171308,1.19,2413.2,2413.1,4.7468518]
[1726394172208,1.19,2413.2,2413.1,4.74691994]
[1726394172602,3.8861684,2413.3,2413.1,4.74691994]
[1726394172603,2.7121684,2413.3,2413.1,9.43435595]
[1726394172801,2.7121684,2413.5,2413.3,0.41426]
[1726394173012,3.9981684,2413.6,2413.4,5.83759836]
[1726394173209,5.9199684,2413.7,2413.5,3.97494205]
[1726394173402,5.92001494,2413.7,2413.6,0.49104458]
[1726394174015,6.69611494,2413.7,2413.6,0.49104458]
[1726394174518,6.69611494,2413.7,2413.5,0.409]
[1726394174707,1.19,2413.6,2413.5,0.409]
[1726394174902,1.19,2413.6,2413.5,1.40055625]
[1726394175303,1.19,2413.6,2413.5,1.89155042]
[1726394176419,1.19,2413.6,2413.5,0.8118]
[1726394176606,1.19,2413.6,2413.5,1.30279438]
[1726394176807,1.19,2413.6,2413.5,0.8118]
[1726394177104,1.19,2413.6,2413.5,1.30279735]
[1726394177306,1.19,2413.6,2413.5,0.8118]
[1726394177506,1.19,2413.6,2413.5,1.30279469]
[1726394179310,1.19,2413.6,2413.5,0.8118]
[1726394179502,1.19,2413.6,2413.5,1.30279151]
[1726394179709,1.19,2413.6,2413.5,1.30279089]
[1726394179914,1.19,2413.6,2413.5,0.8118]
[1726394184215,1.19,2413.6,2413.4,0.3915]
[1726394186518,0.7761,2413.7,2413.4,0.3915]
[1726394187419,3.9839,2413.7,2413.4,0.3915]
[1726394187918,4.39809,2413.7,2413.4,0.3915]
[1726394188622,0.41421,2413.6,2413.4,0.3915]
[1726394188920,0.3831,2413.5,2413.4,0.3915]
[1726394190323,0.3831,2413.5,2413.2,1.85108321]
[1726394190515,0.3831,2413.5,2413.3,0.8777145]
[1726394190819,0.3831,2413.5,2413.3,0.3867]
[1726394195726,3.5909,2413.5,2413.3,0.3867]
[1726394202323,3.5909,2413.5,2413.3,1.47428321]
[1726394202728,3.5909,2413.5,2413.3,0.3867]
[1726394203520,0.3831,2413.5,2413.3,1.47428321]
[1726394203721,3.5909,2413.5,2413.3,1.47428321]
[1726394207828,0.3831,2413.5,2413.3,1.47428321]
[1726394208437,3.5909,2413.5,2413.3,1.47428321]
[1726394209222,3.5909,2413.5,2413.4,0.49100639]
[1726394209427,3.5909,2413.5,2413.3,1.47428321]
[1726394209635,0.3831,2413.5,2413.4,0.49100949]
[1726394209837,0.3831,2413.5,2413.3,1.47428321]
[1726394210036,0.3831,2413.5,2413.4,0.49100652]
[1726394210624,3.5909,2413.5,2413.4,0.49100652]
[1726394211031,3.5909,2413.5,2413.3,1.47428321]
[1726394211637,3.5909,2413.5,2413.4,0.49100607]
[1726394213342,3.5909,2413.5,2413.4,1.07978504]
[1726394213838,3.5909,2413.5,2413.4,1.07978206]
[1726394214338,3.5909,2413.5,2413.4,1.07978521]
[1726394215337,3.5909,2413.5,2413.4,1.07978659]
[1726394215544,3.5909,2413.5,2413.4,1.07979152]
[1726394216436,3.5909,2413.5,2413.4,2.16737473]
[1726394216940,3.9785,2413.5,2413.4,2.16737473]
[1726394217635,0.7707,2413.5,2413.4,2.16737473]
[1726394218233,0.7707,2413.5,2413.4,2.9529955]
[1726394218433,0.7707,2413.5,2413.4,4.35115502]
[1726394218745,0.7707,2413.5,2413.4,4.35115659]
[1726394219244,0.7707,2413.5,2413.4,2.9529955]
[1726394219440,0.7707,2413.5,2413.4,4.35115293]
[1726394219749,0.7707,2413.5,2413.4,4.35116632]
[1726394220137,0.7707,2413.5,2413.4,2.9529955]
[1726394221038,0.7707,2413.5,2413.4,4.35117578]
[1726394222352,0.7707,2413.5,2413.4,4.35117761]
[1726394223148,0.7707,2413.5,2413.4,4.35105414]
[1726394223352,0.7707,2413.5,2413.4,4.35106012]
[1726394225051,2.71221494,2413.6,2413.4,4.35106012]
[1726394225241,2.71221494,2413.6,2413.5,1.07979344]
[1726394225541,2.71221494,2413.6,2413.5,1.48529344]
[1726394226542,2.71221494,2413.6,2413.5,1.48528637]
[1726394227249,4.4138,2413.7,2413.5,1.48528637]
[1726394227450,4.4138,2413.7,2413.5,0.4055]
[1726394227651,3.2078,2413.6,2413.5,0.4055]
[1726394227851,3.2078,2413.6,2413.5,1.48529633]
[1726394228742,3.2078,2413.6,2413.5,0.8965128]
[1726394229752,3.2078,2413.6,2413.5,1.48529646]
[1726394230050,3.2078,2413.6,2413.5,1.48529761]
[1726394230249,3.2078,2413.6,2413.5,0.8965128]
[1726394230641,3.2078,2413.6,2413.5,1.48529398]
[1726394230847,3.2078,2413.6,2413.5,0.8965128]
[1726394231039,3.2078,2413.6,2413.5,0.99428434]
[1726394231239,3.2078,2413.6,2413.5,1.48529687]
[1726394231537,3.2078,2413.6,2413.5,0.8965145]
[1726394231744,3.2078,2413.6,2413.5,1.485308]
[1726394231952,3.2078,2413.6,2413.5,0.8965145]
[1726394232647,3.2078,2413.6,2413.5,1.48530018]
[1726394233047,3.2078,2413.6,2413.5,1.86260018]
[1726394234053,3.2078,2413.6,2413.5,2.24970018]
[1726394234247,3.2078,2413.6,2413.5,1.6609145]
[1726394234448,3.2078,2413.6,2413.5,1.75868118]
[1726394234650,3.5874,2413.6,2413.5,2.24969664]
[1726394237347,5.9239765,2413.6,2413.5,3.33716236]
[1726394238163,5.9239765,2413.6,2413.5,2.74837631]
[1726394238347,0.8652,2413.8,2413.5,17.41319629]
[1726394238348,2.8121765,2413.8,2413.5,17.41319629]
[1726394238551,0.096,2413.8,2413.6,8.70336284]
[1726394238844,0.096,2413.8,2413.7,5.83674471]
[1726394239054,2.7161765,2413.9,2413.7,9.84955323]
[1726394239254,2.7161765,2413.9,2413.8,0.58877101]
[1726394239560,2.7161765,2413.9,2413.8,1.4662816]
[1726394239949,2.7161765,2413.9,2413.8,1.8640816]
[1726394240255,2.7161765,2414.0,2413.8,1.86400513]
[1726394240558,2.7161765,2414.0,2413.8,0.7843]
[1726394240760,2.7161765,2414.0,2413.9,0.3792]
[1726394243161,3.1202765,2414.0,2413.9,0.3792]
[1726394245860,6.3280765,2414.0,2413.9,0.3792]
[1726394248968,3.6119,2414.0,2413.9,0.3792]
[1726394252264,10.4704765,2414.0,2413.5,1.0874283]
[1726394252466,3.2078,2413.7,2413.6,0.3828]
[1726394254875,3.2078,2413.7,2413.5,0.3843]
[1726394255063,0.3934,2413.6,2413.5,0.3843]
[1726394255461,0.3934,2413.6,2413.4,0.7641]
[1726394256368,0.3934,2413.6,2413.4,0.3828]
[1726394256671,0.3943,2413.5,2413.4,0.3828]
[1726394263368,0.3934,2413.6,2413.4,0.3828]
[1726394267766,3.2078,2413.5,2413.4,0.3828]
[1726394270568,0.3934,2413.6,2413.4,0.3828]
[1726394270981,3.2078,2413.5,2413.4,0.3828]
[1726394275476,0.3934,2413.6,2413.4,0.3828]
[1726394276081,3.2078,2413.5,2413.4,0.3828]
[1726394276579,0.3934,2413.6,2413.4,0.3828]
[1726394276882,3.2078,2413.5,2413.4,0.3828]
[1726394277570,3.2078,2413.5,2413.4,0.87381077]
[1726394277778,3.2078,2413.5,2413.4,0.3828]
[1726394278274,3.2078,2413.5,2413.4,0.8738109]
[1726394279077,3.6012,2413.6,2413.4,0.8738109]
[1726394279380,3.6012,2413.6,2413.4,0.3828]
[1726394283982,0.3934,2413.6,2413.4,0.3828]
[1726394284290,3.6012,2413.6,2413.4,0.3828]
[1726394285480,0.3934,2413.6,2413.4,0.3828]
[1726394285682,2.81036929,2413.8,2413.4,1.4702283]
[1726394285984,0.096,2413.8,2413.5,0.49072892]
[1726394286188,0.096,2413.8,2413.6,0.3918]
[1726394286580,0.096,2413.8,2413.7,0.3808]
[1726394286775,5.92216929,2413.9,2413.7,0.3808]
[1726394290586,0.3885,2413.8,2413.6,0.3918]
[1726394290785,0.377,2413.7,2413.6,0.3918]
[1726394291086,0.755,2413.7,2413.6,0.3918]
[1726394291391,0.755,2413.7,2413.6,0.88256758]
[1726394291583,0.755,2413.7,2413.6,0.88256257]
[1726394293786,3.9628,2413.7,2413.6,0.88256257]
[1726394293980,3.9628,2413.7,2413.6,0.49076257]
[1726394294186,3.9628,2413.7,2413.5,1.4778283]
[1726394294491,3.9628,2413.7,2413.6,0.49075557]
[1726394295292,0.755,2413.7,2413.6,1.07922406]
[1726394295491,3.9628,2413.7,2413.6,1.07922488]
[1726394296694,0.755,2413.7,2413.6,1.07922488]
[1726394297195,3.9628,2413.7,2413.6,1.07922488]
[1726394297591,3.9628,2413.7,2413.5,1.4778283]
[1726394297889,3.9628,2413.7,2413.6,1.07922423]
[1726394300795,3.9628,2413.7,2413.6,0.49075645]
[1726394300991,3.9628,2413.7,2413.6,1.07922275]
[1726394301191,3.9628,2413.7,2413.6,1.07922033]
[1726394301397,3.9628,2413.7,2413.6,0.49075403]
[1726394301600,3.9628,2413.7,2413.6,1.07921904]
[1726394302596,0.755,2413.7,2413.6,1.07921904]
[1726394302796,3.9628,2413.7,2413.6,1.07921904]
[1726394304092,3.9628,2413.7,2413.5,1.4778283]
[1726394304405,3.9628,2413.7,2413.4,2.41401978]
[1726394304406,6.67716929,2413.7,2413.4,1.0874283]
[1726394304606,6.67716929,2413.7,2413.6,0.49037398]
[1726394304607,3.9628,2413.7,2413.6,0.49037398]
[1726394305194,8.52019,2413.7,2413.6,0.49037398]
[1726394306101,8.106,2413.7,2413.6,0.49037398]
[1726394308702,8.106,2413.7,2413.3,1.0874283]
[1726394308910,2.71683067,2413.6,2413.3,1.0874283]
[1726394310202,2.71683067,2413.6,2413.4,0.49057633]
[1726394310396,2.71683067,2413.6,2413.4,0.41424]
[1726394310702,3.2078,2413.7,2413.5,2.89517576]
[1726394310912,3.2078,2413.7,2413.6,2.46043992]
[1726394311301,3.2078,2413.7,2413.6,2.95089031]
[1726394311808,3.2078,2413.7,2413.6,1.86346201]
[1726394314001,3.2078,2413.7,2413.6,1.27535039]
[1726394314616,3.2078,2413.7,2413.6,1.86346264]
[1726394316203,3.2078,2413.7,2413.6,0.7849]
[1726394316406,3.2078,2413.7,2413.6,1.37300171]
[1726394316715,3.2078,2413.7,2413.6,1.86345392]
[1726394317512,3.2078,2413.7,2413.6,1.27535221]
[1726394317708,3.2078,2413.7,2413.6,1.86344822]
[1726394318704,3.2078,2413.7,2413.6,2.95087652]
[1726394319009,2.81283067,2413.9,2413.6,7.50828652]
[1726394319206,3.09563067,2414.0,2413.7,1.078287]
[1726394319505,3.2078,2413.9,2413.6,2.2865383]
[1726394319712,3.2078,2413.9,2413.7,1.07802496]
[1726394320013,3.2078,2413.9,2413.6,2.2865383]
[1726394320213,3.2078,2413.9,2413.7,1.07801479]
[1726394320404,3.2078,2413.9,2413.6,2.2865383]
[1726394320913,3.2078,2413.9,2413.7,0.49022608]
[1726394321118,3.2078,2413.9,2413.7,0.58780718]
[1726394321406,3.2078,2413.9,2413.8,0.3892]
[1726394324606,3.5854,2413.9,2413.8,0.3892]
[1726394326009,0.3776,2413.9,2413.8,0.3892]
[1726394326306,3.5854,2413.9,2413.8,0.3892]
[1726394330424,0.3776,2413.9,2413.8,0.3892]
[1726394330623,3.5854,2413.9,2413.8,0.3892]
[1726394338230,3.5854,2413.9,2413.5,1.63111978]
[1726394338231,6.30223067,2413.9,2413.5,1.0874283]
[1726394338529,0.3735,2413.8,2413.5,1.0874283]
[1726394338725,3.2078,2413.6,2413.5,1.0874283]
[1726394338926,3.2078,2413.6,2413.5,1.67579341]
[1726394339131,3.599,2413.6,2413.5,2.16647797]
[1726394339331,0.3912,2413.6,2413.5,2.16647797]
[1726394339641,3.599,2413.6,2413.5,2.16647797]
[1726394341329,3.599,2413.6,2413.5,2.16653114]
[1726394342835,0.3912,2413.6,2413.5,2.16652188]
[1726394343134,3.599,2413.6,2413.5,2.16652188]
[1726394343338,0.404,2413.7,2413.5,1.07909358]
[1726394343533,0.404,2413.7,2413.6,0.49067895]
[1726394343739,0.404,2413.7,2413.6,1.4890377]
[1726394344536,0.404,2413.7,2413.6,1.48904906]
[1726394345336,0.404,2413.7,2413.6,0.90067895]
[1726394347238,0.404,2413.7,2413.6,0.41]
[1726394347439,0.404,2413.7,2413.6,0.90067612]
[1726394349033,0.404,2413.7,2413.6,0.41]
[1726394349232,0.404,2413.7,2413.6,0.90068704]
[1726394350641,0.404,2413.7,2413.6,0.41]
[1726394351240,0.404,2413.7,2413.6,0.90068396]
[1726394351639,0.404,2413.7,2413.6,1.28828396]
[1726394353334,0.404,2413.7,2413.6,1.87664874]
[1726394353735,0.404,2413.7,2413.6,1.28828396]
[1726394354141,0.404,2413.7,2413.6,1.38596044]
[1726394354339,0.404,2413.7,2413.6,1.38597705]
[1726394354539,0.404,2413.7,2413.6,1.87665435]
[1726394355241,0.404,2413.7,2413.6,2.96408265]
[1726394355435,0.404,2413.7,2413.6,2.9640693]
[1726394356841,3.09033067,2413.8,2413.6,4.36338202]
[1726394357037,3.09033067,2413.8,2413.7,1.079041]
[1726394357232,3.09033067,2413.8,2413.7,0.58836747]
[1726394357437,3.09033067,2413.8,2413.7,1.07898606]
[1726394357642,0.3735,2413.8,2413.7,1.07898606]
[1726394358043,2.71683067,2413.9,2413.7,2.58060436]
[1726394358344,2.71683067,2414.0,2413.8,3.34054836]
[1726394358547,2.71683067,2414.1,2413.9,1.07898606]
[1726394358843,2.71683067,2414.1,2414.0,1.27171505]
[1726394359342,2.71683067,2414.1,2414.0,0.7812]
[1726394359538,5.92463067,2414.1,2414.0,0.7812]
[1726394359940,2.71683067,2414.1,2414.0,0.7812]
[1726394360245,5.92463067,2414.1,2414.0,0.7812]
[1726394364442,6.31793067,2414.1,2414.0,0.7812]
[1726394365739,3.6011,2414.1,2414.0,0.3955]
[1726394366351,3.6011,2414.1,2413.8,0.3758]
[1726394366550,2.7162358,2414.0,2413.8,0.3758]
[1726394374043,6.3173358,2414.1,2413.8,0.3758]
[1726394374649,3.1095358,2414.1,2413.8,0.3758]
[1726394375748,6.3173358,2414.1,2413.8,0.3758]
[1726394376447,3.1095358,2414.1,2413.8,0.3758]
[1726394376851,6.3173358,2414.1,2413.8,0.3758]
[1726394379946,2.7162358,2414.0,2413.8,0.3758]
[1726394380148,0.7875,2413.9,2413.8,0.3758]
[1726394383158,0.7875,2413.9,2413.8,0.86633333]
[1726394384357,0.3897,2413.9,2413.8,0.3758]
[1726394384556,0.3897,2413.9,2413.8,1.45446742]
[1726394384762,0.3897,2413.9,2413.8,0.86631726]
[1726394384955,0.3897,2413.9,2413.8,0.96393524]
[1726394385457,0.3897,2413.9,2413.8,1.45441541]
[1726394385663,0.3897,2413.9,2413.8,1.94489697]
[1726394385858,0.3897,2413.9,2413.8,1.45446217]
[1726394386054,0.3897,2413.9,2413.8,1.94498408]
[1726394387764,0.3897,2413.9,2413.8,0.86628859]
[1726394388165,0.3897,2413.9,2413.8,1.45451076]
[1726394388365,0.3897,2413.9,2413.8,0.86628859]
[1726394388866,0.3897,2413.9,2413.8,1.45450538]
[1726394389164,0.3897,2413.9,2413.8,0.86633446]
[1726394389356,0.3897,2413.9,2413.8,1.4545369]
[1726394389759,0.3897,2413.9,2413.8,1.45453728]
[1726394390266,0.3897,2413.9,2413.8,1.45454201]
[1726394394367,0.3897,2413.9,2413.8,0.3758]
[1726394394568,0.3897,2413.9,2413.8,0.96400795]
[1726394394768,0.3897,2413.9,2413.8,1.45455672]
[1726394394962,0.3897,2413.9,2413.8,1.45456022]
[1726394397663,0.3897,2413.9,2413.8,0.86635227]
[1726394398074,0.3897,2413.9,2413.8,1.45456916]
[1726394400176,0.3897,2413.9,2413.8,2.54199746]
[1726394400671,0.3897,2413.9,2413.8,1.45456916]
[1726394400672,3.1059358,2413.9,2413.8,1.45456916]
[1726394400867,3.1059358,2413.9,2413.8,0.86635227]
[1726394401066,3.1059358,2413.9,2413.8,1.45461204]
[1726394402472,3.1059358,2413.9,2413.8,0.49055227]
[1726394402667,3.5089358,2413.9,2413.8,0.49055227]
[1726394402878,0.7927,2413.9,2413.8,0.49055227]
[1726394403680,3.2078,2414.0,2413.8,1.07882161]
[1726394403981,3.2078,2414.0,2413.9,0.96513102]
[1726394404168,3.2078,2414.0,2413.9,0.96509499]
[1726394404774,3.2078,2414.0,2413.9,1.45690591]
[1726394406580,3.2078,2414.0,2413.9,1.45682031]
[1726394407078,0.3933,2414.1,2413.9,1.45682031]
[1726394407279,3.2078,2414.0,2413.9,0.3769]
[1726394407579,3.2078,2414.0,2413.9,1.45681638]
[1726394407779,5.92628684,2414.0,2413.9,1.45681638]
[1726394407982,3.2078,2414.0,2413.9,1.45681638]
[1726394408281,5.92634283,2414.0,2413.9,1.45681638]
[1726394408470,2.71854283,2414.0,2413.9,1.45681638]
[1726394408675,3.2078,2414.0,2413.9,1.45681638]
[1726394408870,5.92632753,2414.0,2413.9,1.45681638]
[1726394410073,3.2078,2414.0,2413.9,1.45681638]
[1726394410282,5.92642198,2414.0,2413.9,1.45681638]
[1726394410875,5.92642198,2414.0,2413.9,2.54330821]
[1726394411676,5.92642198,2414.0,2413.9,2.05151227]
[1726394411981,5.92642198,2414.0,2413.9,2.54315514]
[1726394413185,5.92642198,2414.0,2413.9,2.0515114]
[1726394413574,5.92642198,2414.0,2413.9,2.05151441]
[1726394413983,5.92642198,2414.0,2413.9,2.54315909]
[1726394416088,5.92642198,2414.0,2413.9,2.16625909]
[1726394416678,5.92642198,2414.0,2413.9,1.07976726]
[1726394417082,5.92642198,2414.0,2413.9,2.16625909]
[1726394417478,3.2078,2414.0,2413.9,1.07976726]
[1726394418281,3.2078,2414.0,2413.9,0.49164468]
[1726394419083,3.2078,2414.0,2413.9,1.07985332]
[1726394419590,3.2078,2414.0,2413.9,0.49164468]
[1726394419791,3.2078,2414.0,2413.9,1.08012283]
[1726394421079,0.3933,2414.1,2413.9,1.08012283]
[1726394421284,3.2078,2414.0,2413.8,1.08649183]
[1726394421486,2.71865316,2413.9,2413.8,1.08649183]
[1726394421687,2.71865316,2413.9,2413.8,2.95348511]
[1726394422391,3.10275316,2413.9,2413.8,2.95348511]
[1726394422696,3.10275316,2413.9,2413.8,2.16660333]
[1726394422990,3.10275316,2413.9,2413.8,1.08649183]
[1726394423193,3.10275316,2413.9,2413.8,2.16661754]
[1726394423393,3.10275316,2413.9,2413.8,1.57829529]
[1726394423595,3.10275316,2413.9,2413.8,1.67481323]
[1726394423798,3.10275316,2413.9,2413.8,2.16662067]
[1726394423992,3.10275316,2413.9,2413.8,2.36518201]
[1726394424296,3.10275316,2413.9,2413.8,2.9534981]
[1726394424889,3.10275316,2413.9,2413.8,3.3458981]
[1726394425090,3.10275316,2413.9,2413.8,4.13277544]
[1726394425299,3.10275316,2413.9,2413.8,3.3458981]
[1726394425896,3.10275316,2413.9,2413.8,4.13277602]
[1726394426897,3.10275316,2413.9,2413.8,2.85409304]
[1726394427095,3.10275316,2413.9,2413.8,4.13274954]
[1726394427293,2.71865316,2413.9,2413.8,4.13274954]
[1726394427494,5.92645316,2414.0,2413.8,7.01637762]
[1726394427695,5.92645316,2414.0,2413.9,2.9534363]
[1726394427896,5.92645316,2414.0,2413.9,2.95343483]
[1726394428693,5.92645316,2414.0,2413.9,2.95338875]
[1726394429298,5.92645316,2414.0,2413.9,2.16659825]
[1726394429701,5.92645316,2414.0,2413.9,1.08653572]
[1726394429888,5.92645316,2414.0,2413.9,0.58847185]
[1726394430095,5.92645316,2414.0,2413.9,1.08041107]
[1726394433104,3.2078,2414.0,2413.8,1.47893572]
[1726394433299,3.09800455,2413.9,2413.8,1.47893572]
[1726394433504,3.09800455,2413.9,2413.8,2.06756506]
[1726394433906,3.09800455,2413.9,2413.8,3.34690533]
[1726394434300,3.09800455,2413.9,2413.8,4.13421436]
[1726394434601,3.09800455,2413.9,2413.8,3.34694105]
[1726394435101,3.09800455,2413.9,2413.8,4.13424819]
[1726394436396,3.09800455,2413.9,2413.8,3.54561885]
[1726394436601,3.09800455,2413.9,2413.8,4.13436521]
[1726394437804,3.09800455,2413.9,2413.8,4.134422]
[1726394438406,3.09800455,2413.9,2413.8,2.95461126]
[1726394438708,5.34156,2413.9,2413.8,0.78730903]
[1726394439596,5.34156,2413.9,2413.6,1.08653572]
[1726394439900,3.2078,2413.7,2413.5,1.46893572]
[1726394440203,0.3827,2413.6,2413.5,1.46893572]
[1726394440405,3.09903852,2413.6,2413.5,1.08226616]
[1726394440700,3.47973852,2413.6,2413.5,0.49351276]
[1726394441295,3.47973852,2413.6,2413.4,0.3863]
[1726394441900,3.47973852,2413.6,2413.5,0.49350923]
[1726394441901,0.7634,2413.6,2413.5,0.49350923]
[1726394442102,0.7634,2413.6,2413.5,1.08227104]
[1726394442292,0.7634,2413.6,2413.5,0.49350923]
[1726394443300,0.7634,2413.6,2413.4,0.3863]
[1726394443796,0.7634,2413.6,2413.5,0.49350156]
[1726394444193,0.7634,2413.6,2413.4,0.3863]
[1726394450012,5.92413852,2413.7,2413.4,0.3863]
[1726394450013,3.2078,2413.7,2413.4,0.3863]
[1726394450213,3.2078,2413.7,2413.5,0.7778]
[1726394452210,0.096,2413.8,2413.5,0.7778]
[1726394452401,0.096,2413.8,2413.6,0.4934713]